bitfinex/quotes_SOLUSD_20250531
["timestamp","ask_amount","ask_price","bid_price","bid_amount"]
[1748655059583,42.31722113,155.23,155.22,12.03899436]
[1748655060101,42.4593827,155.23,155.22,12.03899436]
[1748655060288,68.60154427,155.23,155.22,12.03899436]
[1748655060489,61.25119313,155.23,155.22,0.86391176]
[1748655060820,0.28432314,155.18,155.11,42.31722113]
[1748655061112,0.28432314,155.18,155.1,42.31722113]
[1748655061113,42.31722113,155.15,155.1,42.31722113]
[1748655061282,42.31722113,155.14,155.09,43.32684022]
[1748655061487,6.44497074,155.16,155.09,1.00961909]
[1748655061488,42.31722113,155.13,155.09,1.00961909]
[1748655061784,44.64964886,155.19,155.09,1.00961909]
[1748655061785,6.44246875,155.22,155.11,42.31722113]
[1748655061989,42.31722113,155.2,155.15,42.31722113]
[1748655062218,42.31722113,155.18,155.09,23.57704369]
[1748655062397,42.31722113,155.16,155.09,23.57704369]
[1748655062703,0.28432314,155.18,155.1,42.31722113]
[1748655062905,42.31722113,155.15,155.1,42.31722113]
[1748655063112,42.31722113,155.13,155.09,1.00961909]
[1748655063369,42.31722113,155.14,155.09,43.32684022]
[1748655063833,18.40163875,155.24,155.13,42.31722113]
[1748655063989,42.31722113,155.22,155.17,42.31722113]
[1748655064188,18.40163875,155.24,155.12,42.36]
[1748655064189,42.31722113,155.21,155.12,42.36]
[1748655064484,42.31722113,155.21,155.16,42.31722113]
[1748655064721,42.31722113,155.21,155.12,42.36]
[1748655064892,42.31722113,155.21,155.16,42.31722113]
[1748655065229,42.31722113,155.22,155.17,42.31722113]
[1748655065683,42.31722113,155.23,155.18,42.31722113]
[1748655065886,42.31722113,155.19,155.12,42.31722113]
[1748655066194,42.31722113,155.18,155.13,42.31722113]
[1748655066511,84.67722113,155.2,155.15,42.31722113]
[1748655066698,42.31722113,155.18,155.13,42.31722113]
[1748655066894,54.29722113,155.18,155.12,42.31722113]
[1748655067206,42.31722113,155.14,155.09,7.45715659]
[1748655067403,42.36,155.16,155.09,43.32684022]
[1748655067605,42.36,155.16,155.11,42.31722113]
[1748655067606,84.67722113,155.16,155.11,42.31722113]
[1748655067922,11.98,155.18,155.15,42.31722113]
[1748655068088,42.31722113,155.22,155.17,42.31722113]
[1748655068411,42.31722113,155.21,155.16,42.31722113]
[1748655068607,42.31722113,155.22,155.17,42.31722113]
[1748655068816,42.31722113,155.22,155.17,48.76172234]
[1748655069016,11.98,155.23,155.19,42.31722113]
[1748655069317,146.9,155.26,155.22,42.31722113]
[1748655069618,54.29722113,155.28,155.18,1.6334]
[1748655069912,11.98,155.28,155.24,42.31722113]
[1748655070120,11.98,155.28,155.2,26.0]
[1748655070121,11.98,155.28,155.26,42.31722113]
[1748655070413,6.047,155.33,155.27,42.31722113]
[1748655070414,11.98,155.33,155.27,42.31722113]
[1748655070589,11.98,155.33,155.26,26.0]
[1748655070590,42.31722113,155.36,155.31,42.31722113]
[1748655070794,42.31722113,155.36,155.31,48.75595656]
[1748655071012,42.31722113,155.36,155.3,42.31722113]
[1748655071225,158.88,155.38,155.32,42.31722113]
[1748655071427,11.98,155.38,155.33,42.31722113]
[1748655071630,42.31722113,155.36,155.31,42.31722113]
[1748655071937,42.31722113,155.35,155.3,42.31722113]
[1748655072112,18.41584115,155.38,155.31,42.31722113]
[1748655072113,42.31722113,155.36,155.31,42.31722113]
[1748655072317,11.98,155.38,155.32,42.31722113]
[1748655072529,42.31722113,155.37,155.32,42.31722113]
[1748655072723,42.31722113,155.35,155.29,6.43919368]
[1748655072923,42.31722113,155.36,155.31,42.31722113]
[1748655073128,42.31722113,155.35,155.3,42.31722113]
[1748655073431,42.31722113,155.34,155.29,42.31722113]
[1748655073633,42.31722113,155.35,155.29,42.31722113]
[1748655073944,84.69722113,155.36,155.31,42.31722113]
[1748655074146,42.31722113,155.37,155.32,42.31722113]
[1748655074443,42.31722113,155.35,155.3,42.31722113]
[1748655075027,42.31722113,155.36,155.31,42.31722113]
[1748655075650,18.41596958,155.38,155.28,42.31722113]
[1748655075651,42.31722113,155.33,155.28,42.31722113]
[1748655076018,11.96,155.32,155.26,42.31722113]
[1748655076315,54.27722113,155.32,155.27,42.31722113]
[1748655076722,11.96,155.32,155.29,42.31722113]
[1748655076929,11.96,155.32,155.28,42.31722113]
[1748655077145,11.96,155.32,155.29,42.31722113]
[1748655077617,11.96,155.32,155.26,6.44080896]
[1748655077942,11.96,155.32,155.19,117.94444886]
[1748655077943,42.31722113,155.29,155.19,117.94444886]
[1748655078149,42.31722113,155.27,155.2,6.44329896]
[1748655078350,42.31722113,155.26,155.21,42.31722113]
[1748655078572,42.31722113,155.26,155.2,6.44329896]
[1748655078573,54.27722113,155.26,155.2,6.44329896]
[1748655078747,42.31722113,155.24,155.18,1.6334]
[1748655078947,42.31722113,155.23,155.18,43.95062113]
[1748655079144,146.9,155.26,155.22,42.31722113]
[1748655079375,11.96,155.27,155.23,42.31722113]
[1748655079957,11.96,155.27,155.18,24.18774444]
[1748655079958,11.96,155.27,155.25,42.31722113]
[1748655080152,54.27722113,155.27,155.22,42.31722113]
[1748655080481,54.27722113,155.27,155.18,24.18774444]
[1748655080482,42.31722113,155.24,155.18,8.07742095]
[1748655080684,42.31722113,155.24,155.19,42.31722113]
[1748655081045,54.32,155.27,155.19,42.31722113]
[1748655081269,42.31722113,155.25,155.2,42.31722113]
[1748655081475,103.0776722,155.27,155.21,42.31722113]
[1748655081792,42.31722113,155.26,155.19,6.44358505]
[1748655081948,42.31722113,155.25,155.18,8.07728132]
[1748655082150,42.31722113,155.23,155.18,43.95062113]
[1748655083156,42.31722113,155.23,155.18,50.39457136]
[1748655083362,48.75940146,155.23,155.18,43.95062113]
[1748655083590,42.31722113,155.19,155.14,42.31722113]
[1748655083789,42.31722113,155.17,155.12,50.38996992]
[1748655083960,42.31722113,155.17,155.12,1.6262]
[1748655084356,42.31722113,155.18,155.12,42.31722113]
[1748655084778,42.31722113,155.17,155.12,42.31722113]
[1748655084958,42.31722113,155.16,155.11,42.31722113]
[1748655085997,54.32,155.19,155.15,42.31722113]
[1748655086197,54.32,155.19,155.11,6.44678974]
[1748655086198,11.96,155.23,155.18,42.31722113]
[1748655086370,11.96,155.23,155.21,42.31722113]
[1748655086899,11.96,155.23,155.19,42.31722113]
[1748655087067,11.96,155.23,155.21,42.31722113]
[1748655087986,11.96,155.23,155.19,6.44359988]
[1748655088197,11.96,155.23,155.15,6.44537544]
[1748655088373,42.31722113,155.21,155.16,42.31722113]
[1748655088679,146.9,155.2,155.17,42.31722113]
[1748655088869,146.9,155.2,155.18,42.31722113]
[1748655089291,146.9,155.2,155.17,42.31722113]
[1748655089668,146.9,155.2,155.16,42.31722113]
[1748655090278,146.9,155.2,155.17,42.31722113]
[1748655090795,146.9,155.2,155.18,42.31722113]
[1748655091163,195.66073854,155.2,155.12,6.44662197]
[1748655091364,189.21722113,155.2,155.15,48.76228748]
[1748655091564,189.21722113,155.2,155.1,68.31722113]
[1748655091565,146.9,155.2,155.16,42.31722113]
[1748655091797,189.21722113,155.2,155.15,42.31722113]
[1748655092295,189.21722113,155.2,155.14,6.44570125]
[1748655092296,146.9,155.2,155.18,42.31722113]
[1748655092684,146.9,155.2,155.17,42.31722113]
[1748655093191,146.9,155.2,155.16,42.31722113]
[1748655093570,146.9,155.2,155.17,6.44454469]
[1748655093781,146.9,155.2,155.17,42.31722113]
[1748655094091,146.9,155.2,155.16,48.76209885]
[1748655094275,146.9,155.2,155.16,42.31722113]
[1748655094598,146.9,155.19,155.15,42.31722113]
[1748655094967,42.31722113,155.17,155.09,7.4571667]
[1748655095192,42.31722113,155.12,155.09,1.00961909]
[1748655096074,42.31722113,155.1,155.09,1.00961909]
[1748655096276,54.27722113,155.1,155.08,0.8930468]
[1748655096486,11.96,155.1,155.08,0.8930468]
[1748655096969,11.96,155.1,155.08,7.34132268]
[1748655097170,11.96,155.1,155.08,0.8930468]
[1748655099070,34.76161467,155.17,155.08,0.8930468]
[1748655099071,153.34516376,155.16,155.09,42.31722113]
[1748655099269,165.30516376,155.16,155.08,7.3410884]
[1748655099510,165.30516376,155.16,155.08,0.8930468]
[1748655099511,42.31722113,155.12,155.08,0.8930468]
[1748655099816,48.76508852,155.1,155.08,0.8930468]
[1748655100104,48.76436426,155.11,155.08,0.8930468]
[1748655100271,6.44714313,155.11,155.08,0.8930468]
[1748655100471,48.76436426,155.11,155.08,0.8930468]
[1748655100885,146.9,155.12,155.09,42.31722113]
[1748655101094,11.96,155.16,155.11,42.31722113]
[1748655101299,11.96,155.16,155.14,42.31722113]
[1748655101490,11.96,155.16,155.09,42.38]
[1748655101697,11.96,155.16,155.15,42.31722113]
[1748655102086,11.96,155.16,155.12,1.6085]
[1748655102293,11.96,155.16,155.12,43.92572113]
[1748655102795,11.96,155.16,155.13,42.31722113]
[1748655103106,11.96,155.16,155.12,43.92572113]
[1748655103305,11.96,155.16,155.14,42.31722113]
[1748655103886,11.96,155.16,155.13,48.7632345]
[1748655104087,11.96,155.16,155.12,8.05502939]
[1748655104288,11.96,155.16,155.13,42.31722113]
[1748655105097,11.96,155.16,155.15,42.31722113]
[1748655105315,6.6267,155.26,155.15,42.31722113]
[1748655105478,11.96,155.24,155.2,42.31722113]
[1748655105677,11.96,155.24,155.15,42.36]
[1748655105678,42.31722113,155.23,155.17,42.31722113]
[1748655105912,48.75959276,155.23,155.17,42.31722113]
[1748655106077,54.27722113,155.24,155.15,6.44537544]
[1748655106407,42.31722113,155.2,155.13,6.44603146]
[1748655106606,42.31722113,155.21,155.15,42.31722113]
[1748655106792,42.31722113,155.19,155.13,42.31722113]
[1748655106989,42.31722113,155.21,155.16,42.31722113]
[1748655107214,84.67722113,155.22,155.16,42.31722113]
[1748655107412,84.67722113,155.22,155.12,8.05507591]
[1748655107596,42.31722113,155.19,155.14,42.31722113]
[1748655107928,48.76135052,155.18,155.13,42.31722113]
[1748655108078,11.96,155.18,155.13,42.31722113]
[1748655108281,11.96,155.18,155.14,42.31722113]
[1748655108520,54.27722113,155.18,155.12,43.92572113]
[1748655108830,42.31722113,155.15,155.09,42.31722113]
[1748655109013,42.31722113,155.16,155.11,42.31722113]
[1748655109330,42.31722113,155.15,155.1,42.31722113]
[1748655109905,6.44579089,155.14,155.1,42.31722113]
[1748655110103,6.44579089,155.14,155.09,42.31722113]
[1748655110321,42.31722113,155.11,155.08,0.8930468]
[1748655110527,11.96,155.11,155.08,43.21026793]
[1748655110830,11.96,155.11,155.08,0.8930468]
[1748655111701,54.27722113,155.11,155.08,0.8930468]
[1748655111900,60.72438713,155.11,155.08,0.8930468]
[1748655112118,42.31722113,155.1,155.08,0.8930468]
[1748655112427,18.407166,155.11,155.08,0.8930468]
[1748655112722,11.96,155.11,155.08,43.21026793]
[1748655113724,18.40707353,155.11,155.08,0.8930468]
[1748655113923,11.96,155.11,155.08,49.6583746]
[1748655114109,11.96,155.11,155.09,42.31722113]
[1748655114310,11.96,155.11,155.08,0.8930468]
[1748655114535,11.96,155.11,155.08,43.21026793]
[1748655114826,11.96,155.11,155.08,49.65848603]
[1748655115010,11.96,155.11,155.09,42.31722113]
[1748655115424,11.96,155.11,155.08,49.65848603]
[1748655115623,11.96,155.11,155.1,42.31722113]
[1748655115923,11.96,155.11,155.1,33.86844778]
[1748655116127,18.40509151,155.16,155.1,33.86844778]
[1748655116333,45.82608604,155.16,155.11,27.42099453]
[1748655116541,39.38099453,155.16,155.11,27.42099453]
[1748655117254,39.38099453,155.16,155.14,27.42099453]
[1748655117255,11.96,155.16,155.14,27.42099453]
[1748655117428,11.96,155.16,155.12,28.97809453]
[1748655117735,11.96,155.16,155.12,1.5571]
[1748655117944,11.96,155.16,155.14,42.42022321]
[1748655119019,11.96,155.16,155.13,42.42022321]
[1748655119218,11.96,155.16,155.14,42.42022321]
[1748655119622,11.96,155.16,155.15,42.42022321]
[1748655119826,11.96,155.16,155.14,42.42022321]
[1748655120236,11.96,155.16,155.13,6.4460356]
[1748655120444,26.0,155.11,155.08,0.8930468]
[1748655120641,54.38022321,155.1,155.08,0.8930468]
[1748655121225,11.96,155.1,155.08,0.8930468]
[1748655121540,42.42022321,155.09,155.08,0.8930468]
[1748655122133,48.86809218,155.09,155.08,0.8930468]
[1748655122646,18.4075145,155.1,155.08,0.8930468]
[1748655122854,60.82769655,155.1,155.08,0.8930468]
[1748655123564,42.42022321,155.09,155.08,0.8930468]
[1748655123773,18.40747334,155.1,155.08,0.8930468]
[1748655123774,158.86,155.1,155.08,0.8930468]
[1748655123984,146.9,155.1,155.09,42.42022321]
[1748655124156,11.96,155.16,155.1,6.44745325]
[1748655124470,11.96,155.16,155.15,42.42022321]
[1748655124843,11.96,155.16,155.13,42.42022321]
[1748655125170,92.8,155.19,155.15,42.42022321]
[1748655125466,11.96,155.21,155.11,42.36]
[1748655125467,11.96,155.21,155.18,42.42022321]
[1748655125637,11.96,155.21,155.17,42.42022321]
[1748655125837,54.38022321,155.21,155.17,42.42022321]
[1748655126037,11.96,155.21,155.18,42.42022321]
[1748655126257,11.96,155.21,155.17,42.42022321]
[1748655126466,11.96,155.21,155.11,18.64964886]
[1748655126467,18.40292518,155.21,155.14,42.42022321]
[1748655126766,84.78022321,155.2,155.15,42.42022321]
[1748655127063,42.36,155.2,155.16,42.42022321]
[1748655127281,11.96,155.21,155.18,42.42022321]
[1748655127667,11.96,155.21,155.17,42.42022321]
[1748655127844,11.96,155.21,155.18,42.42022321]
[1748655128761,11.96,155.21,155.2,42.42022321]
[1748655129646,60.82322518,155.21,155.14,6.44579089]
[1748655129858,11.96,155.21,155.2,42.42022321]
[1748655130062,11.96,155.21,155.19,42.42022321]
[1748655130454,11.96,155.21,155.2,42.42022321]
[1748655130643,11.96,155.21,155.19,42.42022321]
[1748655132712,11.96,155.21,155.17,42.42022321]
[1748655133004,11.96,155.21,155.11,16.11728009]
[1748655133005,42.42022321,155.18,155.11,42.42022321]
[1748655133164,42.42022321,155.17,155.11,42.42022321]
[1748655133366,42.42022321,155.14,155.08,43.31327001]
[1748655133565,42.42022321,155.13,155.08,43.31327001]
[1748655133789,11.94,155.14,155.09,42.42022321]
[1748655133974,11.94,155.14,155.1,42.42022321]
[1748655134179,11.94,155.14,155.09,42.42022321]
[1748655134801,11.94,155.14,155.11,42.42022321]
[1748655135366,11.94,155.14,155.1,42.42022321]
[1748655135780,11.94,155.14,155.09,6.44783444]
[1748655135781,11.94,155.14,155.11,42.42022321]
[1748655135975,201.26022321,155.16,155.11,42.42022321]
[1748655136173,158.84,155.16,155.13,42.42022321]
[1748655136373,11.94,155.16,155.15,42.42022321]
[1748655136580,11.94,155.22,155.15,42.42022321]
[1748655136789,11.94,155.22,155.18,42.42022321]
[1748655137069,11.94,155.22,155.21,42.42022321]
[1748655137502,146.9,155.27,155.21,42.42022321]
[1748655137795,11.94,155.31,155.26,42.42022321]
[1748655137977,11.94,155.31,155.29,42.42022321]
[1748655138607,11.94,155.31,155.28,42.42022321]
[1748655138925,11.94,155.31,155.3,42.42022321]
[1748655139089,60.79722635,155.36,155.3,42.42022321]
[1748655139285,42.42022321,155.35,155.29,42.42022321]
[1748655139491,42.42022321,155.35,155.3,42.42022321]
[1748655139991,18.37700314,155.36,155.26,6.44080896]
[1748655140190,18.37700314,155.36,155.29,42.42022321]
[1748655140400,60.79722635,155.36,155.3,42.42022321]
[1748655140801,11.94,155.36,155.32,42.42022321]
[1748655141007,11.94,155.36,155.35,42.42022321]
[1748655141305,11.94,155.36,155.34,42.42022321]
[1748655141640,42.42022321,155.35,155.26,1.00851362]
[1748655141914,42.42022321,155.33,155.27,42.42022321]
[1748655142121,26.0,155.35,155.29,42.42022321]
[1748655142319,60.79706391,155.36,155.3,42.42022321]
[1748655142621,42.42022321,155.34,155.29,42.42022321]
[1748655142830,60.6968407,155.36,155.3,42.42022321]
[1748655143016,42.42022321,155.35,155.29,42.42022321]
[1748655143318,103.11706391,155.36,155.31,42.42022321]
[1748655143495,54.26,155.36,155.31,42.42022321]
[1748655143693,11.94,155.36,155.32,42.42022321]
[1748655143908,11.94,155.36,155.31,42.42022321]
[1748655143909,54.36022321,155.36,155.31,42.42022321]
[1748655144111,11.94,155.36,155.35,42.42022321]
[1748655144316,6.43376272,155.44,155.35,42.42022321]
[1748655144522,158.84,155.45,155.41,42.42022321]
[1748655144828,11.94,155.45,155.43,42.42022321]
[1748655145120,11.94,155.45,155.41,42.42022321]
[1748655145317,11.94,155.45,155.37,6.43624895]
[1748655145318,11.94,155.45,155.43,42.42022321]
[1748655145693,92.74,155.49,155.44,42.42022321]
[1748655145914,92.74,155.49,155.46,42.42022321]
[1748655146140,135.16022321,155.49,155.44,42.42022321]
[1748655146350,92.74,155.49,155.47,42.42022321]
[1748655146730,11.92,155.51,155.46,42.42022321]
[1748655147061,158.82,155.54,155.49,42.42022321]
[1748655147219,42.42022321,155.53,155.42,42.3]
[1748655147415,158.82,155.54,155.46,18.64964886]
[1748655147647,92.72,155.59,155.53,42.42022321]
[1748655147949,11.92,155.6,155.48,18.64964886]
[1748655147950,11.92,155.6,155.57,42.42022321]
[1748655148321,11.92,155.6,155.58,42.42022321]
[1748655148932,11.92,155.6,155.59,42.42022321]
[1748655149324,42.28,155.65,155.59,42.42022321]
[1748655149325,11.92,155.65,155.59,42.42022321]
[1748655149526,42.42022321,155.63,155.55,1.5166]
[1748655149761,42.42022321,155.59,155.55,1.5166]
[1748655149927,11.92,155.65,155.58,42.42022321]
[1748655150127,11.92,155.65,155.62,42.42022321]
[1748655150339,92.72,155.69,155.64,42.42022321]
[1748655150548,99.14302356,155.69,155.65,42.42022321]
[1748655150729,99.14302356,155.69,155.64,42.42022321]
[1748655151050,141.56324677,155.69,155.64,42.42022321]
[1748655151224,99.14302356,155.69,155.64,42.42022321]
[1748655151425,42.42022321,155.67,155.54,42.42022321]
[1748655151743,42.42022321,155.67,155.62,42.42022321]
[1748655151935,42.42022321,155.67,155.61,42.42022321]
[1748655152135,42.42022321,155.66,155.61,42.42022321]
[1748655152357,115.20057382,155.69,155.61,42.42022321]
[1748655152521,42.42022321,155.67,155.62,42.42022321]
[1748655152722,42.42022321,155.67,155.61,42.42022321]
[1748655152944,48.8444812,155.66,155.61,42.42022321]
[1748655153225,109.0618734,155.69,155.57,60.90964886]
[1748655153226,6.42374909,155.68,155.63,42.42022321]
[1748655153537,42.42022321,155.66,155.61,42.42022321]
[1748655153767,0.28432314,155.67,155.62,42.42022321]
[1748655153972,42.70454635,155.67,155.62,42.42022321]
[1748655154172,42.42022321,155.66,155.61,42.42022321]
[1748655154470,0.28432314,155.67,155.55,20.16624886]
[1748655154471,26.0,155.65,155.55,20.16624886]
[1748655154663,6.42374909,155.68,155.64,42.42022321]
[1748655154986,6.42374909,155.68,155.65,42.42022321]
[1748655155285,42.42022321,155.66,155.58,26.0]
[1748655155458,42.70454635,155.67,155.61,42.42022321]
[1748655155889,6.42374909,155.68,155.63,42.42022321]
[1748655156090,92.72,155.69,155.67,42.42022321]
[1748655156272,11.92,155.7,155.68,42.42022321]
[1748655156591,54.34022321,155.7,155.61,44.64964886]
[1748655156893,11.92,155.7,155.66,42.42022321]
[1748655157189,42.42022321,155.69,155.61,44.64964886]
[1748655157481,18.34276262,155.7,155.66,42.42022321]
[1748655157688,11.92,155.7,155.67,42.42022321]
[1748655157873,11.92,155.7,155.65,42.42022321]
[1748655158073,11.92,155.7,155.66,42.42022321]
[1748655158370,11.92,155.7,155.61,51.07578639]
[1748655158371,11.92,155.7,155.65,42.42022321]
[1748655158766,18.34282892,155.7,155.63,42.42022321]
[1748655158971,18.34282892,155.7,155.61,44.64964886]
[1748655158972,6.42343268,155.68,155.64,42.42022321]
[1748655159173,6.42343268,155.68,155.59,11.92]
[1748655159379,48.84365589,155.68,155.62,42.42022321]
[1748655159566,48.84365589,155.68,155.63,42.42022321]
[1748655159969,42.42022321,155.67,155.62,42.42022321]
[1748655160164,42.42022321,155.67,155.58,6.42755167]
[1748655160165,42.42022321,155.63,155.58,42.42022321]
[1748655160366,11.9,155.64,155.61,42.42022321]
[1748655160607,11.9,155.64,155.63,42.42022321]
[1748655160764,11.9,155.64,155.62,42.42022321]
[1748655161175,18.32519601,155.64,155.6,42.42022321]
[1748655161679,60.74541922,155.64,155.55,1.5166]
[1748655161872,42.42022321,155.61,155.55,1.5166]
[1748655162070,42.42022321,155.62,155.57,42.42022321]
[1748655162265,42.42022321,155.63,155.57,42.42022321]
[1748655162465,42.42022321,155.62,155.56,42.42022321]
[1748655162779,42.42022321,155.61,155.55,43.93682321]
[1748655162979,42.42022321,155.62,155.57,42.42022321]
[1748655163207,26.28432314,155.61,155.53,42.42022321]
[1748655163506,26.28432314,155.61,155.43,84.58904518]
[1748655163507,42.42022321,155.55,155.49,44.00992321]
[1748655163808,11.9,155.56,155.53,42.42022321]
[1748655164177,11.9,155.56,155.49,26.67042088]
[1748655164178,11.9,155.56,155.51,42.42022321]
[1748655164395,11.9,155.56,155.52,42.42022321]
[1748655164866,11.9,155.56,155.53,42.42022321]
[1748655165477,11.9,155.56,155.55,42.42022321]
[1748655165682,26.0,155.6,155.55,42.42022321]
[1748655165995,11.9,155.61,155.57,42.42022321]
[1748655166201,11.9,155.61,155.58,42.42022321]
[1748655166510,54.32022321,155.61,155.55,42.42022321]
[1748655166712,54.32022321,155.61,155.57,42.42022321]
[1748655166713,11.9,155.61,155.57,42.42022321]
[1748655167016,11.9,155.61,155.56,42.42022321]
[1748655167510,42.42022321,155.59,155.54,42.42022321]
[1748655167711,54.32022321,155.61,155.55,42.42022321]
[1748655167885,54.32022321,155.61,155.53,42.42022321]
[1748655167886,42.42022321,155.59,155.53,42.42022321]
[1748655168206,42.42022321,155.6,155.54,42.42022321]
[1748655168592,11.9,155.61,155.52,18.64964886]
[1748655168807,11.9,155.61,155.57,42.42022321]
[1748655169316,11.9,155.61,155.59,42.42022321]
[1748655169629,11.9,155.61,155.55,18.64964886]
[1748655169630,11.9,155.61,155.58,42.42022321]
[1748655170310,26.0,155.64,155.6,42.42022321]
[1748655170508,68.42022321,155.64,155.56,6.42838776]
[1748655170703,68.42022321,155.64,155.58,42.42022321]
[1748655170906,68.42022321,155.64,155.54,84.29236473]
[1748655170907,42.42022321,155.62,155.54,68.22]
[1748655171130,42.42022321,155.62,155.56,42.42022321]
[1748655171318,48.84613247,155.62,155.56,42.42022321]
[1748655171525,42.42022321,155.6,155.55,42.42022321]
[1748655171705,42.42022321,155.56,155.49,1.5897]
[1748655171905,42.42022321,155.57,155.49,8.02082998]
[1748655172231,11.9,155.59,155.56,42.42022321]
[1748655173024,11.9,155.59,155.57,42.42022321]
[1748655173527,54.32022321,155.59,155.51,44.64964886]
[1748655173727,42.42022321,155.57,155.52,42.42022321]
[1748655174307,42.42022321,155.58,155.52,42.42022321]
[1748655174503,11.9,155.59,155.56,42.42022321]
[1748655174734,195.74290566,155.7,155.59,18.64964886]
[1748655174919,42.42022321,155.7,155.65,42.42022321]
[1748655175411,60.74249814,155.71,155.65,42.42022321]
[1748655175610,60.74249814,155.71,155.66,42.42022321]
[1748655175611,11.9,155.71,155.66,42.42022321]
[1748655175822,11.9,155.71,155.62,26.0]
[1748655175823,42.42022321,155.7,155.64,42.42022321]
[1748655176549,42.42022321,155.7,155.65,42.42022321]
[1748655177037,42.42022321,155.7,155.62,26.0]
[1748655177038,42.42022321,155.66,155.56,6.2559]
[1748655177247,54.32022321,155.65,155.59,42.42022321]
[1748655177553,42.42022321,155.64,155.58,42.42022321]
[1748655177852,54.32022321,155.65,155.6,42.42022321]
[1748655178645,11.9,155.65,155.61,42.42022321]
[1748655178829,11.9,155.65,155.62,42.42022321]
[1748655179028,11.9,155.65,155.62,48.84607046]
[1748655179239,11.9,155.65,155.62,42.42022321]
[1748655179756,146.9,155.72,155.63,42.42022321]
[1748655180042,42.42022321,155.65,155.6,74.84672242]
[1748655180265,42.42022321,155.65,155.6,42.42022321]
[1748655180446,86.6422924,155.71,155.57,1.6649]
[1748655180447,42.42022321,155.61,155.57,1.6649]
[1748655180648,42.42022321,155.58,155.51,1.6634]
[1748655180946,0.28432314,155.61,155.51,1.6634]
[1748655180947,42.42022321,155.57,155.51,1.6634]
[1748655181153,42.34,155.6,155.47,6.5315]
[1748655181154,42.42022321,155.53,155.47,6.43210128]
[1748655181327,42.42022321,155.54,155.48,42.42022321]
[1748655181517,54.26,155.56,155.51,42.42022321]
[1748655181718,54.26,155.56,155.47,67.16202286]
[1748655181719,54.32022321,155.56,155.5,42.42022321]
[1748655182534,54.32022321,155.56,155.47,25.08175014]
[1748655182535,11.9,155.56,155.53,42.42022321]
[1748655182752,11.9,155.56,155.55,42.42022321]
[1748655182917,54.32022321,155.61,155.55,42.42022321]
[1748655183116,42.42022321,155.59,155.53,42.42022321]
[1748655183630,42.42022321,155.57,155.51,48.8506016]
[1748655183841,42.42022321,155.57,155.52,42.42022321]
[1748655184033,42.42022321,155.59,155.54,42.42022321]
[1748655184228,42.42022321,155.59,155.53,42.42022321]
[1748655184535,42.42022321,155.59,155.54,42.42022321]
[1748655184748,0.14216157,155.6,155.54,42.42022321]
[1748655184961,42.56238478,155.6,155.54,42.42022321]
[1748655185126,68.56238478,155.6,155.54,42.42022321]
[1748655185320,42.42022321,155.55,155.48,42.42022321]
[1748655185650,11.9,155.55,155.51,42.42022321]
[1748655185951,42.42022321,155.53,155.47,68.42022321]
[1748655186266,54.32022321,155.55,155.49,42.42022321]
[1748655186550,42.42022321,155.54,155.48,42.42022321]
[1748655186850,42.42022321,155.54,155.49,42.42022321]
[1748655187630,11.9,155.61,155.53,68.42022321]
[1748655187836,11.9,155.61,155.58,42.42022321]
[1748655188065,11.9,155.61,155.57,42.42022321]
[1748655188229,54.32022321,155.61,155.56,42.42022321]
[1748655188557,11.9,155.61,155.58,42.42022321]
[1748655188724,11.9,155.61,155.52,42.42022321]
[1748655188725,42.42022321,155.59,155.52,42.42022321]
[1748655189056,42.42022321,155.58,155.52,42.42022321]
[1748655189224,54.56432314,155.61,155.51,26.0]
[1748655189225,42.42022321,155.57,155.51,74.8504802]
[1748655189424,42.42022321,155.58,155.52,42.42022321]
[1748655189836,42.42022321,155.58,155.53,42.42022321]
[1748655190035,42.42022321,155.58,155.52,42.42022321]
[1748655190229,42.42022321,155.59,155.53,42.42022321]
[1748655190445,42.42022321,155.58,155.52,42.42022321]
[1748655190638,42.56238478,155.57,155.51,42.42022321]
[1748655190829,42.56238478,155.57,155.52,42.42022321]
[1748655191151,42.56238478,155.57,155.52,48.8500219]
[1748655191389,0.14216157,155.57,155.52,48.8500219]
[1748655191812,42.56238478,155.57,155.52,42.42022321]
[1748655192273,11.9,155.61,155.56,42.42022321]
[1748655192463,11.9,155.61,155.57,42.42022321]
[1748655192894,11.9,155.61,155.56,42.42022321]
[1748655193078,11.9,155.61,155.57,42.42022321]
[1748655193266,11.9,155.61,155.56,42.42022321]